bitfinex/quotes_SOLUSD_20250305
["timestamp","ask_amount","ask_price","bid_price","bid_amount"]
[1741143247701,113.71020423,145.28,145.22,0.033]
[1741143248004,31.91020423,145.25,145.22,0.033]
[1741143248307,113.71020423,145.26,145.22,0.033]
[1741143248818,31.91020423,145.24,145.22,0.033]
[1741143249011,81.8,145.25,145.22,0.033]
[1741143249012,113.71020423,145.25,145.22,0.033]
[1741143249388,81.8,145.25,145.22,0.033]
[1741143250305,31.91020423,145.27,145.22,0.033]
[1741143250492,31.91020423,145.28,145.22,31.94320423]
[1741143251621,31.91020423,145.27,145.22,0.033]
[1741143252194,31.91020423,145.28,145.22,31.94320423]
[1741143252394,31.91020423,145.28,145.23,6.8856]
[1741143252713,31.91020423,145.27,145.23,6.8856]
[1741143252924,31.91020423,145.25,145.22,0.033]
[1741143254223,250.01020423,145.28,145.22,31.94320423]
[1741143254424,31.91020423,145.27,145.22,0.033]
[1741143254807,250.01020423,145.28,145.22,31.94320423]
[1741143255499,31.91020423,145.27,145.22,0.033]
[1741143257322,250.01020423,145.28,145.22,38.82930423]
[1741143258321,81.8,145.28,145.23,32.19452737]
[1741143258499,81.8,145.28,145.25,32.19452737]
[1741143258698,81.83,145.31,145.26,31.91020423]
[1741143259226,0.03,145.31,145.28,31.91020423]
[1741143259397,0.03,145.31,145.27,7.16802314]
[1741143259398,0.03,145.31,145.3,31.91020423]
[1741143260420,0.03,145.31,145.3,39.07682737]
[1741143262208,0.03,145.31,145.3,158.8743316]
[1741143262209,0.0001,145.31,145.3,158.8743316]
[1741143262415,0.03,145.35,145.33,20.28432314]
[1741143262630,0.03,145.35,145.33,140.67532737]
[1741143263001,0.03,145.35,145.34,0.28432314]
[1741143263203,0.0001,145.35,145.34,115.79452737]
[1741143263424,0.03,145.42,145.41,0.28432314]
[1741143263613,0.03,145.42,145.41,32.19452737]
[1741143264414,0.03,145.42,145.41,113.79452737]
[1741143264619,0.03,145.42,145.41,120.67162737]
[1741143265434,0.03,145.46,145.42,0.28432314]
[1741143265730,0.0001,145.46,145.45,84.1047316]
[1741143265905,0.0001,145.46,145.45,165.7047316]
[1741143266727,0.03,145.47,145.45,172.5799316]
[1741143266728,0.0001,145.47,145.45,172.5799316]
[1741143266925,1.194e-05,145.5,145.49,20.28432314]
[1741143267236,81.8,145.61,145.5,0.28432314]
[1741143267406,81.8,145.61,145.55,0.14216157]
[1741143267601,31.91020423,145.61,145.56,0.14216157]
[1741143267801,1.194e-05,145.62,145.57,32.0523658]
[1741143268045,1.194e-05,145.62,145.59,0.14216157]
[1741143268733,1.194e-05,145.62,145.59,32.0523658]
[1741143269205,0.03001194,145.62,145.59,0.14216157]
[1741143269608,0.03001194,145.62,145.59,32.0523658]
[1741143269817,0.03001194,145.62,145.59,38.9206658]
[1741143270318,0.03001194,145.62,145.6,32.0523658]
[1741143270525,0.03001194,145.62,145.61,39.06212737]
[1741143270703,0.03,145.62,145.61,39.06212737]
[1741143271103,0.03,145.62,145.61,126.67792737]
[1741143271706,0.03,145.62,145.61,81.88432314]
[1741143271915,0.03,145.62,145.61,120.66212737]
[1741143274016,31.91020423,145.7,145.65,0.28432314]
[1741143274232,31.91020423,145.73,145.67,32.19452737]
[1741143274430,31.91020423,145.71,145.67,0.14216157]
[1741143274743,31.91020423,145.7,145.66,0.14216157]
[1741143274929,38.77370423,145.7,145.66,0.14216157]
[1741143275424,31.91020423,145.69,145.65,0.14216157]
[1741143275625,113.71020423,145.69,145.63,31.91020423]
[1741143275832,31.91020423,145.67,145.62,0.14216157]
[1741143276029,31.91020423,145.67,145.61,31.91020423]
[1741143276245,31.91020423,145.68,145.62,32.0523658]
[1741143276542,31.91020423,145.68,145.63,0.14216157]
[1741143277042,31.91020423,145.66,145.6,31.91020423]
[1741143277245,31.91020423,145.66,145.56,17.1744]
[1741143277246,31.91020423,145.63,145.56,81.6]
[1741143277420,31.91020423,145.62,145.56,31.91020423]
[1741143277624,81.8,145.64,145.59,31.91020423]
[1741143277814,31.91020423,145.65,145.6,0.14216157]
[1741143278015,81.8,145.66,145.63,0.14216157]
[1741143278239,81.8,145.66,145.61,0.14216157]
[1741143278240,31.91020423,145.67,145.61,32.0523658]
[1741143278429,51.91020423,145.66,145.62,0.14216157]
[1741143278843,26.8655,145.66,145.58,31.91020423]
[1741143279054,31.91020423,145.64,145.59,0.14216157]
[1741143279223,31.91020423,145.64,145.59,0.28432314]
[1741143279432,31.91020423,145.63,145.59,0.14216157]
[1741143279841,31.91020423,145.63,145.57,31.91020423]
[1741143280046,31.91020423,145.63,145.54,98.7774]
[1741143280256,20.0,145.66,145.62,0.14216157]
[1741143280555,31.91020423,145.68,145.63,0.14216157]
[1741143280846,31.91020423,145.67,145.63,0.14216157]
[1741143281056,81.8,145.71,145.66,0.14216157]
[1741143281242,31.91020423,145.72,145.66,32.0523658]
[1741143281427,113.71020423,145.73,145.68,0.14216157]
[1741143281629,33.41540423,145.74,145.68,32.0523658]
[1741143281951,31.91020423,145.74,145.69,0.14216157]
[1741143282150,81.8,145.76,145.71,32.0523658]
[1741143282558,31.91020423,145.75,145.71,0.14216157]
[1741143282925,81.8,145.76,145.63,34.333]
[1741143282926,31.91020423,145.73,145.67,31.91020423]
[1741143283241,31.91020423,145.69,145.65,0.14216157]
[1741143283430,81.8,145.73,145.65,32.19452737]
[1741143283431,31.91020423,145.71,145.65,32.19452737]
[1741143283629,31.91020423,145.72,145.67,0.14216157]
[1741143284143,81.8,145.73,145.65,120.5176658]
[1741143284144,31.91020423,145.71,145.65,120.5176658]
[1741143284349,31.91020423,145.7,145.65,88.4653]
[1741143284649,31.91020423,145.71,145.66,0.28432314]
[1741143285027,31.91020423,145.7,145.66,0.14216157]
[1741143285330,31.91020423,145.71,145.65,38.9179658]
[1741143285565,31.91020423,145.72,145.66,0.14216157]
[1741143285848,31.91020423,145.69,145.63,0.14216157]
[1741143286052,31.91020423,145.68,145.62,126.83640423]
[1741143286245,31.91020423,145.67,145.62,81.6]
[1741143286552,31.91020423,145.67,145.62,88.4669]
[1741143286754,31.91020423,145.67,145.62,6.8669]
[1741143287833,31.91020423,145.66,145.59,113.51020423]
[1741143288236,31.91020423,145.66,145.6,32.19452737]
[1741143288529,31.91020423,145.65,145.6,6.868]
[1741143288732,31.91020423,145.63,145.58,6.3443]
[1741143288950,31.91020423,145.61,145.55,88.4703]
[1741143289131,31.91020423,145.6,145.54,38.26400423]
[1741143289333,31.91020423,145.57,145.5,6.3538]
[1741143289535,31.91020423,145.56,145.5,38.26400423]
[1741143289762,31.91020423,145.54,145.48,38.78390423]
[1741143290061,31.91020423,145.52,145.46,38.78440423]
[1741143290236,218.1,145.58,145.45,6.3538]
[1741143290237,31.91020423,145.5,145.45,6.3538]
[1741143290438,31.91020423,145.5,145.45,13.2289]
[1741143290956,31.91020423,145.52,145.46,32.19452737]
[1741143291345,31.91020423,145.54,145.49,0.28432314]
[1741143291851,31.91020423,145.55,145.5,6.8728]
[1741143292053,31.91020423,145.56,145.5,38.78300423]
[1741143292257,31.91020423,145.57,145.51,31.91020423]
[1741143292558,31.91020423,145.56,145.5,38.78300423]
[1741143292731,31.91020423,145.56,145.5,6.8728]
[1741143292932,31.91020423,145.55,145.5,6.8728]
[1741143293134,31.91020423,145.56,145.5,38.78300423]
[1741143294261,31.91020423,145.53,145.49,6.8732]
[1741143294461,31.91020423,145.54,145.49,6.8732]
[1741143294647,51.7298544,145.54,145.49,6.8732]
[1741143295669,218.1,145.58,145.48,51.7298544]
[1741143295670,51.7298544,145.52,145.48,6.8737]
[1741143296033,51.7298544,145.54,145.48,58.6035544]
[1741143297235,51.7298544,145.56,145.49,52.01417754]
[1741143297936,51.7298544,145.55,145.49,52.01417754]
[1741143298344,83.3718,145.63,145.53,51.7298544]
[1741143298543,51.7298544,145.6,145.53,51.7298544]
[1741143299349,51.7298544,145.6,145.54,6.8709]
[1741143299552,51.7298544,145.6,145.54,58.6007544]
[1741143299760,51.7298544,145.61,145.55,52.01417754]
[1741143300061,51.7598544,145.67,145.6,51.7298544]
[1741143300261,0.03,145.67,145.62,51.7298544]
[1741143300573,81.8,145.66,145.58,0.28432314]
[1741143300860,81.8,145.65,145.57,81.6]
[1741143301075,81.8,145.65,145.58,0.28432314]
[1741143301557,81.8,145.65,145.6,0.28432314]
[1741143301859,81.8,145.65,145.61,51.7298544]
[1741143302063,51.7298544,145.64,145.59,88.4686]
[1741143302258,51.7298544,145.64,145.59,81.6]
[1741143302762,51.7298544,145.63,145.59,81.6]
[1741143303132,51.7298544,145.62,145.59,81.6]
[1741143303338,51.7298544,145.64,145.58,51.7298544]
[1741143303541,51.7298544,145.62,145.56,81.6]
[1741143303739,6.8663,145.64,145.55,12.9328]
[1741143303740,51.7298544,145.59,145.55,6.0627]
[1741143304041,51.7298544,145.6,145.54,6.8708]
[1741143304240,51.7298544,145.6,145.54,58.6006544]
[1741143304461,133.5298544,145.59,145.52,51.7298544]
[1741143304636,51.7298544,145.58,145.51,139.5213544]
[1741143304833,51.7298544,145.57,145.51,146.3933544]
[1741143305044,51.7298544,145.58,145.52,51.7298544]
[1741143305369,218.1,145.61,145.51,87.7915]
[1741143305370,58.5993544,145.57,145.51,87.7915]
[1741143305535,51.7298544,145.56,145.51,81.6]
[1741143305739,235.2692,145.61,145.51,140.2020544]
[1741143305740,51.7298544,145.57,145.51,140.2020544]
[1741143306475,51.7298544,145.54,145.48,51.7298544]
[1741143306768,51.7298544,145.53,145.47,58.6040544]
[1741143307065,51.7298544,145.54,145.48,51.7298544]
[1741143307451,51.7298544,145.53,145.47,58.6040544]
[1741143307647,51.7298544,145.53,145.47,6.8742]
[1741143308167,51.7298544,145.53,145.47,58.6040544]
[1741143308339,133.5298544,145.55,145.48,52.01417754]
[1741143308549,51.7298544,145.53,145.47,58.6040544]
[1741143308755,51.7298544,145.53,145.47,51.7298544]
[1741143308949,51.7298544,145.53,145.46,146.6942544]
[1741143309160,51.7298544,145.53,145.47,51.7298544]
[1741143309354,51.7298544,145.54,145.48,51.7298544]
[1741143309556,51.7298544,145.54,145.49,6.8733]
[1741143309761,51.7298544,145.53,145.48,6.8736]
[1741143309942,51.7298544,145.49,145.46,0.033]
[1741143310140,51.7298544,145.48,145.46,0.033]
[1741143310364,51.7298544,145.47,145.46,0.033]
[1741143311561,133.5298544,145.5,145.46,0.033]
[1741143311942,51.7298544,145.49,145.46,0.033]
[1741143312779,51.7298544,145.52,145.46,51.7628544]
[1741143313468,51.7298544,145.52,145.47,6.8742]
[1741143313668,81.8,145.53,145.47,58.88837754]
[1741143313669,133.5298544,145.53,145.47,58.88837754]
[1741143313973,5.62,145.55,145.48,51.7298544]
[1741143313974,51.7298544,145.54,145.48,51.7298544]
[1741143314547,31.83248718,145.54,145.48,31.83248718]
[1741143314772,81.8,145.55,145.5,31.83248718]
[1741143315076,81.8,145.55,145.52,31.83248718]
[1741143315247,31.83248718,145.59,145.53,31.83248718]
[1741143315450,31.83248718,145.57,145.5,31.83248718]
[1741143315653,31.83248718,145.54,145.48,6.8737]
[1741143315850,31.83248718,145.54,145.48,38.70618718]
[1741143316066,31.83248718,145.56,145.5,31.83248718]
[1741143316255,31.83248718,145.57,145.51,31.83248718]
[1741143316775,51.70676818,145.55,145.49,81.6]
[1741143316980,81.8,145.6,145.52,0.28432314]
[1741143317270,81.8,145.6,145.54,51.70676818]
[1741143317477,133.50676818,145.6,145.54,51.70676818]
[1741143317782,133.50676818,145.6,145.55,6.8704]
[1741143318150,51.70676818,145.56,145.52,6.8719]
[1741143318349,51.70676818,145.55,145.52,6.8719]
[1741143318767,51.70676818,145.56,145.52,6.8719]
[1741143319472,81.8,145.62,145.54,51.70676818]
[1741143319657,51.70676818,145.61,145.55,51.70676818]
[1741143320053,51.70676818,145.61,145.54,51.70676818]
[1741143320372,81.8,145.62,145.53,81.88432314]
[1741143320373,51.70676818,145.6,145.53,133.59109132]
[1741143320678,51.70676818,145.6,145.54,51.70676818]
[1741143320866,81.8,145.62,145.56,51.99109132]
[1741143321363,133.50676818,145.62,145.57,6.8695]
[1741143321573,51.70676818,145.62,145.57,6.8695]
[1741143321954,83.3123,145.64,145.57,6.8695]
[1741143321955,51.70676818,145.61,145.57,6.8695]
[1741143322178,51.70676818,145.58,145.55,6.8704]
[1741143322565,51.70676818,145.58,145.52,58.86299132]
[1741143322765,51.70676818,145.57,145.52,6.8719]
[1741143322972,51.70676818,145.54,145.48,81.6]
[1741143323178,51.70676818,145.55,145.49,6.8733]
[1741143323362,81.8,145.58,145.5,51.70676818]
[1741143323681,51.70676818,145.56,145.5,0.14216157]
[1741143323876,51.70676818,145.56,145.5,51.99109132]
[1741143324085,51.70676818,145.56,145.5,0.28432314]
[1741143324258,51.70676818,145.55,145.5,0.28432314]
[1741143324467,51.70676818,145.54,145.5,6.8728]
[1741143324888,81.8,145.57,145.51,0.28432314]
[1741143325069,81.8,145.57,145.52,51.70676818]
[1741143325571,51.70676818,145.58,145.52,51.70676818]
[1741143325772,51.70676818,145.57,145.51,0.28432314]
[1741143325974,51.70676818,145.57,145.51,51.99109132]
[1741143326293,51.70676818,145.58,145.52,51.70676818]
[1741143326494,51.70676818,145.61,145.55,51.70676818]
[1741143327575,51.70676818,145.61,145.54,51.70676818]
[1741143327771,51.70676818,145.6,145.55,6.8704]
[1741143327973,51.70676818,145.57,145.52,6.8719]
[1741143328171,51.70676818,145.55,145.52,6.8719]
[1741143328371,81.8,145.61,145.54,51.70676818]
[1741143328579,0.03,145.65,145.59,51.70676818]
[1741143328894,0.03,145.65,145.6,51.70676818]
[1741143329089,0.03,145.65,145.59,51.70676818]
[1741143329281,0.03,145.65,145.58,51.70676818]
[1741143329282,51.70676818,145.64,145.58,51.70676818]
[1741143329474,51.70676818,145.64,145.57,139.76779132]
[1741143329786,51.70676818,145.63,145.58,6.869]
[1741143329988,0.03,145.62,145.58,6.869]
[1741143331180,0.03,145.62,145.6,51.70676818]
[1741143331383,0.03,145.62,145.61,0.28432314]
[1741143331595,0.03,145.62,145.61,51.99109132]
[1741143332200,0.03,145.62,145.61,0.28432314]
[1741143332600,0.03,145.62,145.6,81.6]
[1741143333074,0.03,145.62,145.58,6.869]
[1741143333394,51.73676818,145.62,145.58,6.869]
[1741143334098,0.03,145.62,145.58,6.869]
[1741143335098,0.03,145.62,145.59,51.70676818]
[1741143335304,0.03,145.62,145.6,6.8681]
[1741143336595,0.03,145.62,145.58,58.57576818]
[1741143337109,0.03,145.62,145.58,75.74836818]
[1741143337776,0.03,145.62,145.58,6.869]
[1741143338108,51.73676818,145.62,145.58,6.869]
[1741143338281,0.03,145.62,145.58,6.869]
[1741143339112,0.03,145.62,145.59,31.79371822]
[1741143339488,0.03,145.62,145.58,6.869]
[1741143339689,31.82371822,145.62,145.58,6.869]
[1741143339899,31.79371822,145.61,145.58,6.869]
[1741143340215,0.03,145.62,145.58,6.869]
[1741143340380,0.03,145.62,145.58,38.66271822]
[1741143340575,0.03,145.62,145.58,55.83531822]
[1741143340801,0.03,145.62,145.59,31.79371822]
[1741143341904,0.03,145.62,145.6,31.79371822]
[1741143342112,0.03,145.62,145.61,31.79371822]
[1741143342582,0.03,145.62,145.6,31.79371822]
[1741143342904,0.03,145.62,145.6,38.66181822]
[1741143343417,0.03,145.62,145.59,6.9014]
[1741143345403,0.03,145.62,145.59,38.69511822]
[1741143345599,0.03,145.62,145.59,6.9014]
[1741143346407,0.03,145.62,145.59,55.86661822]
[1741143346710,0.03,145.62,145.61,6.8676]
[1741143347123,0.03,145.62,145.59,0.033]
[1741143348724,31.82371822,145.62,145.59,0.033]
[1741143349035,31.79371822,145.61,145.59,0.033]
[1741143349333,113.59371822,145.6,145.59,0.033]
[1741143351932,63.58743644,145.6,145.59,0.033]
[1741143352604,20.0,145.57,145.5,6.8728]
[1741143352804,31.79371822,145.55,145.5,6.8728]
[1741143353630,31.79371822,145.54,145.49,0.033]
[1741143354127,81.8,145.55,145.51,31.79371822]
[1741143354504,81.8,145.55,145.52,6.8719]
[1741143354706,31.79371822,145.57,145.52,6.8719]
[1741143355615,31.79371822,145.56,145.52,6.8719]
[1741143355811,31.79371822,145.54,145.5,6.8728]
[1741143356511,31.79371822,145.55,145.49,55.88331822]
[1741143357419,31.79371822,145.56,145.5,31.79371822]
[1741143358240,31.79371822,145.57,145.51,31.79371822]
[1741143358531,249.89371822,145.58,145.53,6.8714]
[1741143358717,113.59371822,145.58,145.53,6.8714]
[1741143359036,81.8,145.58,145.53,24.0499]
[1741143359327,81.8,145.58,145.53,55.84361822]
[1741143359535,81.8,145.58,145.54,31.79371822]
[1741143360122,113.59371822,145.58,145.53,6.8714]
[1741143360327,31.79371822,145.57,145.53,6.8714]
[1741143360514,31.79371822,145.57,145.52,6.8719]
[1741143361739,31.79371822,145.55,145.5,81.6]
[1741143362038,31.79371822,145.56,145.5,6.8726]
[1741143362409,31.79371822,145.55,145.5,6.8726]
[1741143362808,31.79371822,145.55,145.49,6.9063]
[1741143363140,31.79371822,145.56,145.49,38.70001822]
[1741143363509,113.59371822,145.57,145.51,31.79371822]
[1741143363718,143.1683,145.6,145.5,0.28432314]
[1741143363719,113.59371822,145.59,145.53,31.79371822]
[1741143364534,81.8,145.59,145.53,31.79371822]
[1741143364905,81.8,145.59,145.54,38.66461822]
[1741143365534,1.5245,145.61,145.54,38.66461822]
[1741143365734,0.03,145.62,145.58,31.79371822]
[1741143366039,0.03,145.62,145.61,32.07804136]
[1741143366219,0.03,145.65,145.62,0.28432314]
[1741143366537,0.03,145.65,145.62,31.79371822]
[1741143366709,0.03,145.65,145.61,81.6]
[1741143366910,0.03,145.65,145.62,6.8671]
[1741143367540,31.82371822,145.65,145.61,81.6]
[1741143367838,31.82371822,145.65,145.56,17.1746]
[1741143367839,113.59371822,145.64,145.57,38.66311822]
[1741143368412,0.03,145.62,145.59,31.79371822]
[1741143368614,0.03,145.62,145.61,31.79371822]
[1741143369139,0.03,145.65,145.64,20.28432314]
[1741143369440,0.03,145.65,145.64,52.07804136]
[1741143370521,0.0001,145.65,145.64,133.67804136]
[1741143371144,0.0001,145.65,145.64,140.54424136]
[1741143372130,0.0001,145.65,145.64,133.67804136]
[1741143373227,0.0001,145.65,145.64,140.54424136]
[1741143374648,0.0001,145.65,145.64,133.39371822]
[1741143374857,0.0001,145.65,145.64,101.6]
[1741143375344,0.0001,145.65,145.64,81.6]
[1741143375669,0.0001,145.65,145.63,31.79371822]
[1741143376558,31.79381822,145.65,145.58,81.6]
[1741143376730,31.79371822,145.61,145.54,31.79371822]
[1741143376930,31.79371822,145.6,145.54,31.79371822]
[1741143377136,38.66181822,145.61,145.54,38.66441822]
[1741143377332,38.66091822,145.62,145.55,32.07804136]
[1741143377747,38.66091822,145.62,145.55,31.79371822]
[1741143378056,31.79371822,145.61,145.55,31.79371822]
[1741143378262,113.59371822,145.61,145.54,31.79371822]
[1741143378559,81.8,145.61,145.55,31.79371822]
[1741143378764,219.6274,145.6,145.49,0.033]
[1741143379058,31.79371822,145.53,145.49,0.033]
[1741143379260,31.79371822,145.52,145.49,0.033]
[1741143379435,6.8704,145.56,145.49,0.033]
[1741143379436,31.79371822,145.54,145.49,0.033]
[1741143379639,6.8704,145.56,145.49,0.033]
[1741143379941,31.79371822,145.51,145.49,0.033]
[1741143380143,1.5274,145.5,145.49,0.033]
[1741143380349,33.32111822,145.5,145.46,0.033]
[1741143380535,31.79371822,145.47,145.46,0.033]
[1741143382155,31.79371822,145.48,145.46,0.033]
[1741143382357,31.79371822,145.47,145.46,0.033]
[1741143382747,218.1,145.49,145.46,0.033]
[1741143382946,33.32111822,145.5,145.46,0.033]
[1741143384337,31.79371822,145.5,145.46,0.033]
[1741143384542,31.79371822,145.51,145.46,0.033]
[1741143384864,81.8,145.52,145.46,31.82671822]
[1741143385067,113.59371822,145.54,145.48,31.79371822]
[1741143385439,113.59371822,145.54,145.49,6.8733]
[1741143386762,31.79371822,145.53,145.47,31.79371822]
[1741143386962,113.59371822,145.54,145.48,31.79371822]
[1741143387265,81.8,145.54,145.49,31.79371822]
[1741143388338,81.8,145.57,145.51,31.79371822]
[1741143388541,31.79371822,145.57,145.51,31.79371822]
[1741143388960,31.79371822,145.56,145.51,6.8723]
[1741143389167,31.79371822,145.57,145.51,38.66601822]
[1741143390366,31.79371822,145.57,145.51,55.84691822]
[1741143390688,31.79371822,145.56,145.51,6.8723]
[1741143390966,31.79371822,145.55,145.51,6.8723]
[1741143391166,224.9686,145.59,145.5,81.6]
[1741143391167,31.79371822,145.54,145.5,81.6]
[1741143391373,31.79371822,145.53,145.49,6.8732]
[1741143391743,218.1,145.58,145.49,6.8732]
[1741143391744,31.79371822,145.54,145.49,6.8732]
[1741143391953,31.79371822,145.55,145.49,38.66691822]
[1741143392876,31.79371822,145.55,145.49,38.69991822]
[1741143393176,31.79371822,145.55,145.49,24.0895]
[1741143393350,31.79371822,145.55,145.49,6.9062]
[1741143393748,31.79371822,145.53,145.49,0.033]
[1741143393956,31.79371822,145.52,145.49,0.033]
[1741143394874,31.79371822,145.5,145.49,0.033]
[1741143396872,136.3,145.51,145.49,0.033]
[1741143397077,31.79371822,145.5,145.49,0.033]
[1741143397571,81.8,145.49,145.46,0.033]
[1741143397769,31.79371822,145.47,145.46,0.033]
[1741143398772,81.8,145.48,145.46,0.033]
[1741143399284,81.8,145.51,145.47,31.79371822]
[1741143399691,81.8,145.51,145.46,31.96887979]
[1741143399986,31.79371822,145.52,145.46,31.96887979]
[1741143400171,81.8,145.54,145.46,31.96887979]
[1741143400374,31.79371822,145.53,145.47,31.79371822]
[1741143400778,31.79371822,145.52,145.46,31.96887979]
[1741143400994,31.79371822,145.52,145.47,6.8742]
[1741143401369,31.79371822,145.52,145.47,0.14216157]
[1741143401570,31.79371822,145.51,145.46,0.17516157]
[1741143401864,31.79371822,145.49,145.46,0.033]
[1741143402072,31.79371822,145.48,145.46,0.033]
[1741143402390,31.79371822,145.47,145.46,0.033]
[1741143402759,72.26895958,145.47,145.46,0.033]
[1741143403076,20.0,145.45,145.44,0.033]
[1741143403277,51.79371822,145.45,145.44,0.033]
[1741143403579,51.79371822,145.45,145.39,0.033]
[1741143403777,31.79371822,145.41,145.39,0.033]
[1741143405288,31.79371822,145.4,145.39,0.033]
[1741143408299,218.1,145.45,145.39,0.033]
[1741143408473,31.79371822,145.42,145.39,0.033]
[1741143409798,31.79371822,145.4,145.39,0.033]
[1741143412103,63.58743644,145.4,145.39,0.033]
[1741143412596,31.79371822,145.4,145.39,0.033]
[1741143413276,63.72959801,145.4,145.39,0.033]
[1741143413496,70.60709801,145.4,145.39,0.033]
[1741143413997,31.79371822,145.4,145.39,0.033]
[1741143414697,25.67108443,145.4,145.39,0.033]
[1741143414901,32.54858443,145.4,145.39,0.033]
[1741143415373,25.67108443,145.4,145.39,0.033]
[1741143416690,29.03683022,145.4,145.39,0.033]
[1741143417302,61.44325308,145.4,145.39,0.033]
[1741143417483,0.14216157,145.37,145.35,0.033]
[1741143417678,45.52892286,145.36,145.35,0.033]
[1741143419586,20.0,145.36,145.35,0.033]
[1741143419791,45.52892286,145.36,145.35,0.033]
[1741143420093,3.38023131,145.36,145.35,0.033]
[1741143420278,28.89466865,145.4,145.35,0.033]
[1741143420679,25.52892286,145.37,145.35,0.033]
[1741143420911,25.52892286,145.4,145.35,0.033]
[1741143421200,25.52892286,145.41,145.35,0.033]
[1741143421409,107.32892286,145.41,145.35,6.9129]
[1741143421611,25.52892286,145.4,145.35,0.033]
[1741143422316,25.52892286,145.38,145.35,0.033]
[1741143422520,25.52892286,145.37,145.35,0.033]
[1741143424008,224.9776,145.4,145.35,0.033]
[1741143424009,81.8,145.4,145.35,0.033]
[1741143424215,25.52892286,145.39,145.35,0.033]
[1741143424411,85.17458916,145.4,145.35,0.033]
[1741143424622,25.52892286,145.39,145.35,0.033]
[1741143425003,25.52892286,145.38,145.35,0.033]
[1741143425330,25.52892286,145.36,145.35,0.033]
[1741143425821,25.52892286,145.37,145.35,0.033]
[1741143426225,81.8,145.38,145.35,0.033]
[1741143426725,107.32892286,145.38,145.35,0.033]
[1741143427115,81.8,145.38,145.35,0.033]
[1741143427627,107.32892286,145.38,145.35,0.033]
[1741143429212,81.8,145.38,145.35,0.033]
[1741143429610,25.52892286,145.37,145.35,0.033]
[1741143429802,107.32892286,145.38,145.35,0.033]
[1741143430124,114.20742286,145.38,145.35,0.033]
[1741143430623,107.32892286,145.38,145.35,0.033]
[1741143430801,25.52892286,145.37,145.35,0.033]
[1741143431326,114.20752286,145.38,145.35,0.033]
[1741143431819,107.32892286,145.38,145.35,0.033]
[1741143432029,110.73351202,145.4,145.35,0.033]
[1741143432230,25.55892286,145.4,145.35,0.033]
[1741143432519,0.03,145.4,145.37,25.67108443]
[1741143432728,0.03,145.4,145.39,25.67108443]
[1741143432901,0.03,145.4,145.39,25.813246]
[1741143433096,0.03,145.44,145.4,0.28432314]
[1741143433297,0.03,145.44,145.43,25.813246]
[1741143433709,0.03,145.44,145.4,81.6]
[1741143433902,25.52892286,145.43,145.38,0.14216157]
[1741143434309,25.55892286,145.44,145.38,25.67108443]
[1741143434522,0.03,145.44,145.39,25.52892286]
[1741143434825,25.52892286,145.43,145.38,0.14216157]
[1741143435235,25.55892286,145.44,145.38,25.67108443]
[1741143436428,25.52892286,145.43,145.38,0.14216157]
[1741143436802,25.52892286,145.42,145.36,31.61852286]
[1741143437422,25.52892286,145.41,145.36,6.0896]
[1741143438523,25.52892286,145.42,145.36,38.49792286]
[1741143438725,107.32892286,145.43,145.37,25.67108443]
[1741143439921,107.32892286,145.43,145.37,32.54968443]
[1741143440529,107.32892286,145.43,145.36,6.0896]
[1741143440530,25.52892286,145.41,145.36,6.0896]
[1741143440909,25.52892286,145.4,145.35,0.033]
[1741143441108,25.52892286,145.4,145.36,0.033]
[1741143441620,25.52892286,145.37,145.36,0.033]
[1741143442538,15.95368362,145.38,145.36,0.033]
[1741143442731,88.6781,145.39,145.36,0.033]
[1741143442924,15.95368362,145.37,145.36,0.033]
[1741143444013,97.75368362,145.38,145.36,0.033]
[1741143444515,25.52527479,145.37,145.36,0.033]
[1741143444913,107.32527479,145.38,145.36,0.033]
[1741143445419,25.52527479,145.37,145.36,0.033]
[1741143446035,107.32527479,145.38,145.36,0.033]
[1741143446833,81.8,145.38,145.36,0.033]
[1741143448306,8.4313,145.42,145.37,0.14216157]
[1741143448307,0.03,145.42,145.37,0.14216157]
[1741143448510,0.03,145.42,145.38,0.14216157]